fUSD/lending_fUSD_20250324
["ID","MTS","AMOUNT","RATE_DAILY","PERIOD"]
[356609685,1742814641579,-224.15,0.00031792,2]
[356609686,1742814641590,-224.15,0.00031792,2]
[356609687,1742814641600,-224.15,0.00031792,2]
[356609688,1742814641609,-224.15,0.00031792,2]
[356609689,1742814641619,-224.15,0.00031792,2]
[356609690,1742814641628,-224.15,0.00031792,2]
[356609691,1742814641638,-224.15,0.00031792,2]
[356609692,1742814641647,-224.15,0.00031792,2]
[356609693,1742814641657,-224.15,0.00031792,2]
[356609694,1742814641666,-224.15,0.00031792,2]
[356609695,1742814641676,-224.15,0.00031792,2]
[356609696,1742814641686,-224.15,0.00031792,2]
[356609697,1742814641696,-224.15,0.00031792,2]
[356609698,1742814641705,-224.15,0.00031792,2]
[356609699,1742814641715,-224.15,0.00031792,2]
[356609700,1742814641725,-224.15,0.00031792,2]
[356609701,1742814641734,-224.15,0.00031792,2]
[356609702,1742814641744,-150.0,0.000318,2]
[356609703,1742814641753,-7500.0,0.000318,30]
[356609704,1742814641763,-693.62609183,0.00031801,10]
[356609705,1742814641772,-10203.83029353,0.00031802,2]
[356609706,1742814641781,-1908.75836684,0.00031802,2]
[356609707,1742814641790,-182.86543093,0.00031802,2]
[356609708,1742814641800,-643.0,0.00031802,2]
[356609709,1742814641809,-963.96632547,0.00031802,2]
[356609710,1742814641818,-4215.84022237,0.00031802,2]
[356609711,1742814641830,-4362.69520755,0.00031802,2]
[356609712,1742814641840,-266.71309543,0.00031802,16]
[356609713,1742814641850,-151.81841881,0.00031802,2]
[356609714,1742814641859,-229.51913827,0.00031802,20]
[356609715,1742814641869,-206.86885753,0.00031802,7]
[356609716,1742814641878,-11467.38528241,0.00031802,30]
[356609717,1742814641890,-23141.40889679,0.00031802,30]
[356609718,1742814641900,-41535.0,0.00031802,30]
[356609719,1742814641918,-150.0,0.00029773,2]
[356609720,1742814641928,-150.0,0.00029837,2]
[356609721,1742814641937,-58935.31621665,0.00031802,30]
[356609722,1742814641948,-293024.1105286,0.00031802,30]
[356609723,1742814641961,-6454.96767638,0.00031802,30]
[356609724,1742814641973,-400.07483383,0.00031802,30]
[356609774,1742814643627,-0.00231957,0.00031802,30]
[356609777,1742814643649,-150.0,0.00027864,2]
[356609779,1742814643658,-115.4954502,0.00030814,2]
[356609781,1742814643674,-150.0,0.00029679,2]
[356609783,1742814643684,-34.5045498,0.00030814,2]
[356609785,1742814643695,-3672.6988002,0.00031802,30]
[356609787,1742814643706,-43950.0,0.00031802,30]
[356609789,1742814643986,-150.0,0.00024652,2]
[356609790,1742814643996,-150.0,0.00025554,2]
[356609791,1742814644006,-150.0,0.00025586,2]
[356609792,1742814644016,-150.0,0.0002562,2]
[356609793,1742814644025,-150.0,0.00025767,2]
[356609794,1742814644035,-150.0,0.00025767,2]
[356609795,1742814644044,-150.0,0.00025804,2]
[356609796,1742814644054,-150.0,0.00027505,2]
[356609797,1742814644063,-150.0,0.00027672,2]
[356609798,1742814644072,-150.0,0.00029592,2]
[356609799,1742814644082,-150.0,0.00029599,2]
[356609800,1742814644091,-150.0,0.00029628,2]
[356609801,1742814644100,-150.0,0.0002963,2]
[356609802,1742814644110,-150.0,0.00029641,2]
[356609803,1742814644120,-150.0,0.00029642,2]
[356609804,1742814644130,-150.0,0.00029697,2]
[356609805,1742814644141,-150.0,0.0002971,2]
[356609806,1742814644150,-150.0,0.00029752,2]
[356609807,1742814644160,-150.0,0.00029755,2]
[356609808,1742814644169,-150.0,0.00029759,2]
[356609809,1742814644179,-150.0,0.00029767,2]
[356609810,1742814644188,-150.0,0.00029826,2]
[356609811,1742814644197,-150.0,0.00029836,2]
[356609812,1742814644206,-150.0,0.00030701,2]
[356609813,1742814644216,-150.0,0.00030727,2]
[356609814,1742814644225,-150.0,0.00030734,2]
[356609815,1742814644234,-150.0,0.00030736,2]
[356609816,1742814644243,-150.0,0.00030747,2]
[356609817,1742814644252,-150.0,0.00030762,2]
[356609818,1742814644262,-150.0,0.00030789,2]
[356609819,1742814644272,-150.0,0.0003079,2]
[356609820,1742814644281,-150.0,0.00030792,2]
[356609821,1742814644291,-150.0,0.00030799,2]
[356609822,1742814644301,-150.0,0.00030805,2]
[356609823,1742814644310,-150.0,0.0003081,2]
[356609824,1742814644320,-150.0,0.00030811,2]
[356609825,1742814644329,-150.0,0.00030819,2]
[356609826,1742814644339,-150.0,0.00030819,2]
[356609827,1742814644348,-150.0,0.00030896,2]
[356609828,1742814644363,-150.0,0.00030912,2]
[356609829,1742814644372,-150.0,0.00030938,2]
[356609830,1742814644382,-150.0,0.0003095,2]
[356609831,1742814644391,-150.0,0.00030962,2]
[356609832,1742814644402,-88309.11962526,0.00031802,30]
[356609833,1742814644417,-1776.20347505,0.00031802,30]
[356609834,1742814644428,-14982.08436,0.00031802,30]
[356609836,1742814645528,-49800.0,0.00031802,30]
[356609846,1742814645950,-651.1875,0.00031802,30]
[356609850,1742814646035,-20025.85911985,0.00031802,30]
[356609851,1742814646192,-1982.09944847,0.00031802,30]
[356609852,1742814646203,-67455.75804586,0.00031802,30]
[356609853,1742814646260,-1.01210924,0.00031802,30]
[356609854,1742814646299,-560.17105864,0.00031802,30]
[356609855,1742814646311,-532.52734173,0.00031802,30]
[356609856,1742814646322,-1340.24880151,0.00031802,30]
[356609857,1742814646334,-28236.66,0.00031802,30]
[356609858,1742814646358,-3423.95670514,0.00031802,30]
[356609882,1742815202821,-150.0,0.00016223,2]
[356609883,1742815202848,-300.0,0.00016223,2]
[356609884,1742815202875,-111.0,0.00016224,2]
[356609889,1742815674390,440.45789355,0.0001,2]
[356609890,1742815677964,1718465.39987804,0.0001,2]
[356609891,1742815677994,162005.93482444,0.0001,2]
[356609895,1742815718203,258.07780331,0.000107,2]
[356609896,1742815722141,1211.85041802,0.00010136,2]
[356609908,1742815832109,-250.0,0.00011,2]
[356609910,1742815832119,-283.22015203,0.00011879,2]
[356609912,1742815832131,-16.77984797,0.00011879,2]
[356609913,1742815832139,-20969.83224983,0.0001188,2]
[356609914,1742815832270,-564.76817245,0.0001188,2]
[356609915,1742815832324,-458.11714593,0.0001188,2]
[356609916,1742815832336,-305.51748247,0.0001188,2]
[356609917,1742815832347,-3954.44766024,0.0001188,2]
[356609918,1742815832357,-151.67995339,0.00011973,2]
[356609919,1742815832366,-500.0,0.00011973,2]
[356609920,1742815832376,-30393.87238637,0.00012,2]
[356609921,1742815832391,-438.97982347,0.00012,2]
[356609922,1742815832402,-2400.16032161,0.00012,2]
[356609923,1742815832413,-6222.42494326,0.00012,2]
[356609924,1742815832424,-416.77671131,0.00012,2]
[356609925,1742815832436,-13254.4910038,0.00012,2]
[356609926,1742815832448,-684.71908266,0.00012,2]
[356609927,1742815832492,-6279.67241179,0.00012,2]
[356609953,1742815838061,-8300.2687232,0.00012,2]
[356609954,1742815838073,-391.38267744,0.00012,2]
[356609955,1742815838084,-1105.0,0.00012,2]
[356609956,1742815838095,-8385.858494,0.00012,2]
[356609957,1742815838116,-6221.59999996,0.00012,2]
[356609958,1742815838172,-500.0,0.00012,2]
[356609959,1742815838184,-785.9153066,0.00012,2]
[356609960,1742815838282,-517.34603854,0.00012,2]
[356609964,1742815840240,-293024.1105286,0.00012,2]
[356609965,1742815840252,-947.01167179,0.00012,2]
[356609966,1742815840295,-434.54746564,0.00012,2]
[356609967,1742815840509,-1272.2826952,0.00012,2]
[356609968,1742815840563,-1492.81480188,0.00012,2]
[356609969,1742815840574,-1856.46036361,0.00012,2]
[356609970,1742815840620,-17575.48080001,0.00012,2]
[356609971,1742815840631,-4896.59182002,0.00012,2]
[356609972,1742815840676,-643.65507974,0.00012,2]
[356609996,1742815844394,-390.71565979,0.0001199,2]
[356609997,1742815844403,-424.10698113,0.00012,2]
[356609998,1742815844414,-676.73106052,0.00012,2]
[356609999,1742815844435,-797.97010509,0.00012,2]
[356610001,1742815846118,-2799.00028288,0.00012,2]
[356610002,1742815846130,-7436.16738436,0.00012,2]
[356610003,1742815846175,-1064.8319108,0.00012,2]
[356610004,1742815846232,-468.68885309,0.00012,2]
[356610005,1742815846290,-3973.73806137,0.00012,2]
[356610006,1742815846309,-5293.20840645,0.00012,2]
[356610007,1742815846467,-738.81570275,0.00012,2]
[356610008,1742815846480,-1023.05,0.00012,2]
[356610009,1742815846491,-837.43582365,0.00012,2]
[356610019,1742816194105,-5660.85339697,0.000119,2]
[356610020,1742816194128,-161.5751641,0.000119,2]
[356610021,1742816194150,-500.80886256,0.00011973,2]
[356610022,1742816194172,-194.89958946,0.00011999,2]
[356610023,1742816194197,-910637.05348691,0.00012,2]
[356610024,1742816244587,-6000000.0,0.00012,2]
[356610025,1742816512769,-163.33020747,0.00011899,2]
[356610026,1742816512792,-1517.77155371,0.0001199,2]
[356610027,1742816512815,-150.0,0.00011999,2]
[356610028,1742816512836,-300.0,0.00011999,2]
[356610029,1742816512860,-11768.89823882,0.00012,2]
[356610049,1742817032356,-591.20556994,0.00011999,2]
[356610050,1742817032367,-41150.72439388,0.00012,2]
[356610051,1742817032379,-396.16,0.00012,2]
[356610052,1742817032391,-392.91999999,0.00012,2]
[356610053,1742817032462,-410.11441314,0.00012,2]
[356610054,1742817032621,-2557.29366993,0.00012,2]
[356610055,1742817032675,-762.17542217,0.00012,2]
[356610056,1742817032687,-7803.74097572,0.00012,2]
[356610057,1742817032729,-4000.42529535,0.00012,2]
[356610058,1742817032740,-2098.6035,0.00012,2]
[356610059,1742817032785,-1078.21155371,0.00012,2]
[356610060,1742817032839,-439.7582749,0.00012,2]
[356610093,1742817038277,-570.13742456,0.00012,2]
[356610094,1742817038332,-11519.28872679,0.00012,2]
[356610095,1742817038342,-1134.07176021,0.000128,2]
[356610096,1742817038352,-1231.66067416,0.000129,2]
[356610097,1742817038365,-636.12737663,0.000129,2]
[356610098,1742817038374,-300.0,0.00013,2]
[356610099,1742817038384,-150.0,0.00013089,2]
[356610100,1742817038393,-150.0,0.00013198,2]
[356610101,1742817038403,-350.0,0.00015,2]
[356610102,1742817038412,-153.9,0.00015381,2]
[356610103,1742817038422,-250.0,0.00015855,2]
[356610104,1742817038432,-1493.20472853,0.00015904,2]
[356610105,1742817038441,-663.77940649,0.0001607,2]
[356610106,1742817038450,-403.40468522,0.00016093,2]
[356610107,1742817038460,-476.095,0.00016224,2]
[356610108,1742817038469,-642.0,0.00016224,2]
[356610109,1742817038479,-1281.0,0.00016224,2]
[356610110,1742817038488,-1421.0,0.00016224,2]
[356610111,1742817038497,-1273.0,0.00016224,2]
[356610112,1742817038507,-788.0,0.00016224,2]
[356610113,1742817038516,-907.0,0.00016224,2]
[356610114,1742817038525,-1431.0,0.00016224,2]
[356610115,1742817038535,-4086.0,0.00016224,2]
[356610116,1742817038546,-542.0,0.00016224,2]
[356610117,1742817038555,-3942.0,0.00016224,2]
[356610118,1742817038564,-177.222,0.00016224,2]
[356610119,1742817038574,-151.0,0.00016224,2]
[356610120,1742817038584,-400.0,0.00017,2]
[356610121,1742817038594,-157.66,0.000186,2]
[356610122,1742817038603,-200.0,0.00018998,2]
[356610123,1742817038613,-450.0,0.00019,2]
[356610124,1742817038622,-166.13,0.00019054,2]
[356610125,1742817038631,-150.0,0.00019073,7]
[356610126,1742817038641,-1000.0,0.000191,2]
[356610127,1742817038650,-642.0,0.00019224,2]
[356610128,1742817038659,-467.542,0.00019224,2]
[356610129,1742817038668,-383.895,0.00019224,2]
[356610130,1742817038678,-18478.46298958,0.00019248,2]
[356610131,1742817038690,-4474.5078493,0.00019248,2]
[356610132,1742817038709,-947.02916112,0.00019248,2]
[356610133,1742817038727,-200.0,0.00019291,2]
[356610134,1742817038737,-303.11,0.00019319,2]
[356610135,1742817038746,-175.22,0.00019354,2]
[356610136,1742817038755,-250.0,0.00019461,2]
[356610137,1742817038765,-11447.17990013,0.000196,2]
[356610138,1742817038777,-6030.24051677,0.000196,2]
[356610139,1742817038786,-945.7,0.00019615,2]
[356610140,1742817038795,-150.0,0.00019689,2]
[356610141,1742817038805,-150.99,0.00020951,2]
[356610142,1742817038814,-500.0,0.00021,2]
[356610143,1742817038823,-200.0,0.0002122,2]
[356610144,1742817038833,-500.8936799,0.00021281,2]
[356610145,1742817038842,-1000.0,0.00021488,2]
[356610146,1742817038972,-150.0,0.00021917,2]
[356610147,1742817038983,-319.2363953,0.00022,5]
[356610148,1742817038993,-500.0,0.00022117,2]
[356610149,1742817039002,-332.256,0.00022224,2]
[356610150,1742817039012,-180.44802466,0.00022338,2]
[356610151,1742817039022,-169.57590614,0.00022338,2]
[356610152,1742817039034,-330.42409386,0.00022338,2]
[356610153,1742817039044,-101.94590614,0.00023,2]
[356610154,1742817039056,-448.05409386,0.00023,2]
[356610155,1742817039066,-703.38243089,0.0002305,2]
[356610156,1742817039076,-2053.2476,0.000231,2]
[356610157,1742817039086,-3682.16356931,0.0002315,2]
[356610159,1742817040633,-1968.65623585,0.0002315,2]
[356610160,1742817040687,-1768.96489484,0.0002315,2]
[356610161,1742817040696,-207.5590918,0.00023199,2]
[356610162,1742817040706,-178.0763837,0.00023199,2]
[356610163,1742817040715,-50097.78949811,0.000232,2]
[356610164,1742817040724,-31928.24848191,0.0002325,2]
[356610165,1742817040739,-693.31384955,0.0002325,2]
[356610166,1742817040751,-639.11537689,0.0002325,2]
[356610167,1742817040796,-372.76274551,0.0002325,2]
[356610168,1742817040808,-1225.83502591,0.0002325,2]
[356610169,1742817040819,-357.22804366,0.0002325,2]
[356610170,1742817040830,-21593.84386106,0.0002325,2]
[356610171,1742817040840,-150.0,0.00023287,2]
[356610172,1742817040849,-724.86,0.00023868,2]
[356610173,1742817040858,-1000.0,0.00023875,2]
[356610174,1742817040868,-26374.5292,0.000239,2]
[356610175,1742817040878,-51490.97765963,0.00024,2]
[356610176,1742817040887,-40569.17850556,0.00024,2]
[356610177,1742817040897,-175.22,0.00024192,2]
[356610178,1742817040906,-150.0,0.00024657,2]
[356610179,1742817040916,-1000.0,0.00024658,2]
[356610180,1742817040926,-175.82,0.00024712,30]
[356610181,1742817040935,-57857.3066907,0.000248,2]
[356610182,1742817040945,-319.63895974,0.0002488,2]
[356610183,1742817040954,-28928.6533453,0.0002498,2]
[356610184,1742817040963,-57857.3066907,0.0002499,2]
[356610185,1742817040973,-15255.72697287,0.0002499,2]
[356610186,1742817040984,-684.1663532,0.0002499,2]
[356610187,1742817040996,-3675.75191159,0.0002499,2]
[356610188,1742817041008,-9849.69665804,0.0002499,2]
[356610190,1742817041020,-16431.6440848,0.0002499,2]
[356610191,1742817041029,-151.3,0.0002499,2]
[356610193,1742817041039,-600.0,0.00025,2]
[356610194,1742817041049,-30426.90634369,0.00025,2]
[356610195,1742817041060,-1781.137005,0.00025,2]
[356610196,1742817041072,-1363.68834929,0.00025,2]
[356610197,1742817041083,-4592.27815191,0.00025,2]
[356610198,1742817041095,-1516.91232355,0.00025,2]
[356610199,1742817041106,-8456.29292692,0.00025,2]
[356610200,1742817041117,-1688.13250861,0.00025,2]
[356610201,1742817041128,-652.420016,0.00025,2]
[356610202,1742817041139,-797.6518777,0.00025,2]
[356610203,1742817041153,-1094.0,0.00025,2]
[356610204,1742817041168,-47756.312471,0.00025,2]
[356610205,1742817041178,-703.38243088,0.00025094,2]
[356610206,1742817041187,-858.88,0.00025786,2]
[356610207,1742817041198,-150.0,0.00026027,2]
[356610208,1742817041207,-187.247,0.00026065,12]
[356610209,1742817041216,-668.723,0.00026065,12]
[356610210,1742817041226,-724.86,0.00026132,2]
[356610211,1742817041236,-1000.0,0.00026263,2]
[356610212,1742817041246,-262.49,0.00026849,2]
[356610213,1742817041255,-156.04,0.00026849,2]
[356610214,1742817041264,-650.0,0.00027,2]
[356610215,1742817041275,-303.11,0.00027047,2]
[356610216,1742817041284,-703.38243088,0.00027139,2]
[356610217,1742817041294,-150.0,0.00027397,2]
[356610218,1742817041303,-183.7,0.00027397,2]
[356610219,1742817041312,-1000.0,0.00027596,2]
[356610220,1742817041321,-724.86,0.00028396,2]
[356610221,1742817041330,-166.13,0.00028581,2]
[356610222,1742817041339,-1000.0,0.0002865,2]
[356610223,1742817041349,-150.0,0.00028767,2]
[356610224,1742817041358,-700.0,0.00029,2]
[356610225,1742817041367,-175.22,0.00029031,120]
[356610226,1742817041376,-703.38243088,0.00029183,2]
[356610227,1742817041385,-547.96786382,0.0003,2]
[356610228,1742817041394,-150.0,0.00030136,2]
[356610229,1742817041403,-208.29987401,0.00030357,30]
[356610230,1742817041413,-724.86,0.0003066,2]
[356610231,1742817041422,-1543.24299892,0.00030814,3]
[356610232,1742817041431,-252.077445,0.00030847,4]
[356610233,1742817041440,-750.0,0.00031,2]
[356610234,1742817041449,-703.38243088,0.00031228,2]
[356610235,1742817041458,-1908.86044326,0.00031484,2]
[356610236,1742817041467,-300.0,0.000315,11]
[356610237,1742817041477,-150.0,0.00031506,2]
[356610238,1742817041486,-374.35,0.0003152,2]
[356610239,1742817041495,-200.0,0.0003157,2]
[356610240,1742817041504,-200.0,0.0003157,2]
[356610241,1742817041513,-200.0,0.0003157,2]
[356610242,1742817041523,-200.0,0.0003157,2]
[356610243,1742817041532,-200.0,0.0003157,2]
[356610244,1742817041542,-200.0,0.0003157,2]
[356610245,1742817041551,-200.0,0.0003157,2]
[356610246,1742817041560,-200.0,0.0003157,2]
[356610247,1742817041570,-200.0,0.0003157,2]
[356610248,1742817041579,-200.0,0.0003157,2]
[356610249,1742817041588,-200.0,0.0003157,2]
[356610250,1742817041597,-200.0,0.0003157,2]
[356610251,1742817041606,-200.0,0.0003157,2]
[356610252,1742817041615,-200.0,0.0003157,2]
[356610253,1742817041624,-200.0,0.0003157,2]
[356610254,1742817041633,-200.0,0.0003157,2]
[356610255,1742817041642,-200.0,0.0003157,2]
[356610256,1742817041652,-200.0,0.0003157,2]
[356610257,1742817041661,-204.0,0.0003157,2]
[356610258,1742817041670,-200.0,0.0003157,2]
[356610259,1742817041680,-200.0,0.0003157,2]
[356610260,1742817041689,-200.0,0.0003157,2]
[356610261,1742817041699,-200.0,0.0003157,2]
[356610262,1742817041708,-200.0,0.0003157,2]
[356610263,1742817041717,-200.0,0.0003157,2]
[356610264,1742817041726,-307.0,0.0003157,2]
[356610265,1742817041735,-600.0,0.000316,11]
[356610266,1742817041745,-151.3,0.00031663,2]
[356610267,1742817041754,-22948.4929902,0.00031672,2]
[356610268,1742817041763,-28928.6533453,0.00031682,2]
[356610269,1742817041772,-1000.0,0.000317,11]
[356610270,1742817041782,-355.61438342,0.00031714,2]
[356610271,1742817041791,-3773.90226464,0.00031714,2]
[356610272,1742817041801,-559.25382258,0.00031714,2]
[356610273,1742817041810,-178.50468505,0.00031714,2]
[356610274,1742817041818,-182.94809828,0.00031714,2]
[356610275,1742817041828,-222.0,0.00031714,2]
[356610276,1742817041837,-22948.4929902,0.00031773,2]
[356610277,1742817041846,-151.3,0.00031773,2]
[356610278,1742817041856,-28928.6533453,0.00031783,2]
[356610279,1742817041865,-22948.4929902,0.00031783,2]
[356610280,1742817041874,-22948.4929902,0.0003179,2]
[356610281,1742817041883,-151.3,0.0003179,2]
[356610282,1742817041893,-28928.6533453,0.00031793,2]
[356610283,1742817041903,-22948.4929902,0.00031793,2]
[356610284,1742817041912,-3340.0480358,0.00031799,2]
[356610285,1742817041922,-150.0,0.000318,2]
[356610286,1742817041931,-588.0,0.000318,30]
[356610287,1742817041940,-1300.0,0.000318,11]
[356610288,1742817041949,-6789.7534324,0.000318,2]
[356610298,1742817043477,-500.63448671,0.000245,2]
[356610314,1742817044575,-643.93857311,0.000245,2]
[356610315,1742817044584,-9456.26363657,0.000318,2]
[356610316,1742817044604,-12682.63627633,0.000318,2]
[356610317,1742817044614,-199.17680324,0.00031803,2]
[356610318,1742817044623,-151.48905533,0.00031803,2]
[356610319,1742817044633,-35489.45348744,0.00031803,2]
[356610320,1742817044642,-22948.4929902,0.00031804,2]
[356610321,1742817044652,-151.3,0.00031804,2]
[356610322,1742817044661,-151.3,0.00031804,2]
[356610323,1742817044670,-151.3,0.00031804,2]
[356610324,1742817044679,-151.3,0.00031804,2]
[356610325,1742817044689,-151.3,0.00031804,2]
[356610326,1742817044699,-151.3,0.00031804,2]
[356610327,1742817044709,-151.3,0.00031804,2]
[356610328,1742817044719,-151.3,0.00031804,2]
[356610329,1742817044728,-151.3,0.00031804,2]
[356610330,1742817044737,-151.3,0.00031804,2]
[356610331,1742817044747,-151.3,0.00031804,2]
[356610332,1742817044860,-151.3,0.00031804,2]
[356610333,1742817044871,-151.3,0.00031804,2]
[356610334,1742817044880,-151.3,0.00031804,2]
[356610335,1742817044890,-151.3,0.00031804,2]
[356610336,1742817044899,-151.3,0.00031804,2]
[356610337,1742817044917,-151.3,0.00031804,2]
[356610338,1742817044929,-151.3,0.00031804,2]
[356610339,1742817044940,-151.3,0.00031804,2]
[356610340,1742817044950,-151.3,0.00031804,2]
[356610341,1742817044960,-151.3,0.00031804,2]
[356610342,1742817044970,-151.3,0.00031804,2]
[356610343,1742817044981,-151.3,0.00031804,2]
[356610344,1742817044991,-151.3,0.00031804,2]
[356610345,1742817045001,-151.3,0.00031804,2]
[356610346,1742817045011,-7500.0,0.0003181,30]
[356610347,1742817045022,-666.0,0.00031813,10]
[356610348,1742817045033,-575.0,0.00031814,5]
[356610349,1742817045044,-2834885.1940457,0.00031814,30]
[356610350,1742817045054,-216.0,0.00031814,31]
[356610351,1742817045065,-547.0,0.00031814,31]
[356610352,1742817045075,-547.0,0.00031814,31]
[356610353,1742817045085,-548.0,0.00031814,31]
[356610354,1742817045096,-547.0,0.00031814,31]
[356610355,1742817045108,-50000.0,0.00031814,30]
[356610356,1742817045118,-160.26053533,0.00031814,2]
[356610357,1742817045128,-72487.75,0.00031814,30]
[356610358,1742817045139,-4689.32433765,0.00031814,2]
[356610359,1742817045151,-2614.34317499,0.00031814,2]
[356610360,1742817045161,-7744.86882618,0.00031814,2]
[356610361,1742817045172,-867.06686289,0.00031814,2]
[356610362,1742817045182,-3000.0,0.00031814,32]
[356610363,1742817045192,-598.43706058,0.00031814,2]
[356610364,1742817045202,-5331.64,0.00031821,30]
[356610365,1742817045212,-1026.88417251,0.00031826,15]
[356610366,1742817045222,-408.24,0.00031836,30]
[356610367,1742817045234,-8668.601898,0.00031837,30]
[356610368,1742817045244,-463.75,0.00031839,30]
[356610369,1742817045253,-450.0,0.0003184,30]
[356610370,1742817045263,-500.0,0.00031873,5]
[356610371,1742817045273,-1600.0,0.000319,11]
[356610372,1742817045283,-557.07800059,0.00032,120]
[356610373,1742817045292,-22948.4929902,0.00032616,2]
[356610374,1742817045304,-151.3,0.00032616,2]
[356610375,1742817045313,-28928.6533453,0.00032626,2]
[356610376,1742817045323,-907.22,0.00032646,2]
[356610377,1742817045332,-262.49,0.00032646,2]
[356610378,1742817045343,-150.0,0.00032876,2]
[356610379,1742817045352,-162.57289,0.00032877,2]
[356610380,1742817045362,-1901.3281939,0.00032877,14]
[356610381,1742817045371,-724.86,0.00032924,2]
[356610382,1742817045381,-800.0,0.00033,2]
[356610383,1742817045391,-703.38243088,0.00033272,2]
[356610384,1742817045400,-260.99823712,0.000333,2]
[356610385,1742817045410,-781.32,0.00033354,2]
[356610386,1742817045420,-443.24,0.00033354,2]
[356610387,1742817045432,-781.32,0.00033354,2]
[356610388,1742817045442,-443.24,0.00033354,2]
[356610389,1742817045452,-781.32,0.00033354,2]
[356610390,1742817045461,-443.24,0.00033354,2]
[356610391,1742817045471,-443.24,0.00033354,2]
[356610392,1742817045481,-781.32,0.00033354,2]
[356610393,1742817045491,-443.24,0.00033354,2]
[356610394,1742817045501,-781.32,0.00033354,2]
[356610395,1742817045511,-443.24,0.00033354,2]
[356610396,1742817045521,-781.32,0.00033354,2]
[356610397,1742817045531,-394.37,0.000334,7]
[356610398,1742817045540,-153.16,0.000335,31]
[356610399,1742817045551,-153.16,0.000335,31]
[356610400,1742817045560,-153.16,0.000335,31]
[356610401,1742817045570,-153.16,0.000335,31]
[356610402,1742817045580,-153.16,0.000335,31]
[356610403,1742817045590,-153.16,0.000335,31]
[356610404,1742817045599,-153.16,0.000335,31]
[356610405,1742817045610,-153.16,0.000335,31]
[356610406,1742817045620,-22948.4929902,0.0003367,2]
[356610407,1742817045630,-500.0,0.00033673,5]
[356610408,1742817045639,-28928.6533453,0.0003368,2]
[356610409,1742817045649,-22948.4929902,0.0003368,2]
[356610410,1742817045659,-151.3,0.0003368,2]
[356610411,1742817045668,-28928.6533453,0.0003369,2]
[356610412,1742817045678,-22948.4929902,0.0003369,2]
[356610413,1742817045688,-2175.32,0.000337,2]
[356610414,1742817045698,-1924.28,0.000337,2]
[356610415,1742817045708,-37852.4,0.000337,2]
[356610416,1742817045717,-10655.8,0.000337,2]
[356610417,1742817045727,-9833.3,0.000337,2]
[356610418,1742817045736,-4753.24,0.000337,2]
[356610419,1742817045746,-2000.0,0.000342,2]
[356610420,1742817045755,-150.0,0.00034246,2]
[356610421,1742817045764,-151.3,0.00034274,2]
[356610422,1742817045774,-28928.6533453,0.00034283,2]
[356610423,1742817045787,-22948.4929902,0.00034293,2]
[356610424,1742817045797,-443.24,0.00034313,2]
[356610425,1742817045807,-781.32,0.00034313,2]
[356610426,1742817045818,-443.24,0.00034313,2]
[356610427,1742817045828,-781.32,0.00034313,2]
[356610428,1742817045837,-443.24,0.00034313,2]
[356610429,1742817045847,-443.24,0.00034313,2]
[356610430,1742817045856,-246.58,0.00034313,2]
[356610431,1742817045867,-216.9143278,0.00034334,30]
[356610432,1742817045877,-150.0,0.00034548,10]
[356610433,1742817045887,-223.42129055,0.00034849,120]
[356610434,1742817045896,-3199.8927799,0.00034888,2]
[356610435,1742817045906,-355.61438336,0.00034912,2]
[356610436,1742817045916,-28928.6533453,0.0003499,2]